bitfinex-derivatives/quotes_ETHF0:USTF0_20251116
["timestamp","ask_amount","ask_price","bid_price","bid_amount"]
[1763260067391,0.307,3170.2,3170.1,3.2078]
[1763260067589,0.307,3170.2,3170.1,3.21068735]
[1763260068093,0.307,3170.2,3170.1,4.31848505]
[1763260068280,0.1773,3170.5,3170.1,4.31848505]
[1763260068477,0.307,3170.2,3170.1,4.63318505]
[1763260068691,0.307,3170.5,3170.4,0.3147]
[1763260069485,0.307,3170.3,3170.2,1.1077977]
[1763260070488,0.307,3170.2,3170.1,4.31848505]
[1763260071583,0.307,3170.2,3170.1,4.63318505]
[1763260071988,0.307,3170.2,3170.1,3.52538735]
[1763260073590,0.088,3170.5,3170.1,3.52538735]
[1763260073783,0.088,3170.5,3170.2,1.11725459]
[1763260073985,0.307,3170.3,3170.2,1.43195459]
[1763260078591,0.307,3170.3,3170.2,1.11725459]
[1763260080095,0.2874,3170.2,3170.1,4.32794194]
[1763260080587,0.2874,3170.2,3170.1,3.21068735]
[1763260080989,0.2874,3170.2,3170.1,3.48998735]
[1763260081694,0.2874,3170.2,3170.1,0.00288735]
[1763260083291,6.0,3170.1,3169.6,0.00473171]
[1763260083592,3.2078,3169.8,3169.6,0.00473171]
[1763260084185,1.13467549,3170.2,3170.0,0.1788]
[1763260084494,3.2078,3170.2,3170.0,0.1788]
[1763260085496,3.2078,3170.2,3170.1,0.2793]
[1763260087082,3.2078,3170.2,3170.0,0.1788]
[1763260088695,3.2078,3170.2,3170.1,0.2793]
[1763260088994,3.2078,3170.2,3170.0,0.1788]
[1763260093093,3.2078,3170.2,3169.6,0.00874313]
[1763260093801,3.2078,3170.2,3170.0,0.1874]
[1763260096799,3.2078,3170.7,3170.5,0.1874]
[1763260096998,3.2078,3171.1,3171.0,0.4856]
[1763260097202,0.00315448,3171.3,3171.2,0.2982]
[1763260098018,3.2078,3172.0,3171.9,0.2982]
[1763260098213,3.21034701,3172.0,3171.9,0.30209061]
[1763260099217,0.00254701,3172.0,3171.9,0.30209061]
[1763260099718,0.00254701,3172.0,3171.9,0.00389061]
[1763260100212,0.00254701,3172.0,3171.9,0.30209061]
[1763260101111,3.21034701,3172.0,3171.9,0.00389061]
[1763260103013,3.21034701,3172.0,3171.9,0.30209061]
[1763260104109,3.21034701,3172.0,3171.9,0.00389061]
[1763260104920,3.21034701,3172.0,3171.9,0.30209061]
[1763260106123,0.00254701,3172.0,3171.9,0.30209061]
[1763260108723,3.2078,3173.3,3172.8,0.2809]
[1763260108909,3.2078,3173.3,3173.0,0.4508]
[1763260109111,3.2078,3173.3,3173.0,0.1699]
[1763260109617,3.21175907,3173.3,3173.0,0.1699]
[1763260109819,0.0346,3173.7,3173.6,0.2809]
[1763260110009,0.0346,3173.7,3173.5,0.1699]
[1763260110814,0.03818821,3173.7,3173.5,0.1699]
[1763260112521,0.03818821,3173.7,3173.6,0.2809]
[1763260115523,0.03818821,3173.7,3173.5,0.1699]
[1763260115730,0.03818821,3173.7,3173.6,0.2809]
[1763260119027,6.03818821,3173.7,3173.3,0.00473171]
[1763260119229,3.2078,3173.4,3172.7,3.2078]
[1763260119730,3.2078,3172.9,3172.1,3.2078]
[1763260120224,3.2078,3172.9,3172.4,0.00473171]
[1763260125130,3.2078,3172.9,3172.8,0.2809]
[1763260125435,3.2078,3172.9,3172.4,0.00473171]
[1763260125436,12.6674,3173.4,3172.5,3.3777]
[1763260125633,13.05601323,3174.4,3172.4,0.00473171]
[1763260125634,0.24403875,3174.4,3173.3,3.2078]
[1763260125824,0.1667,3174.5,3172.6,4.298]
[1763260125825,0.1667,3174.5,3174.3,3.2078]
[1763260126028,0.1667,3174.5,3173.7,1.10121566]
[1763260126323,0.1667,3174.5,3174.4,3.2078]
[1763260126533,0.1667,3175.0,3174.4,3.2078]
[1763260126738,0.1667,3175.0,3174.8,3.2078]
[1763260127127,0.1703531,3175.0,3174.8,3.21055513]
[1763260127328,3.2078,3175.9,3174.9,6.0]
[1763260127536,3.2078,3175.9,3175.5,3.2078]
[1763260127922,0.1667,3176.0,3175.5,3.2078]
[1763260128233,0.00248213,3176.0,3175.9,3.2078]
[1763260128532,0.1667,3176.0,3175.9,3.2078]
[1763260128921,0.1667,3176.5,3175.9,3.2078]
[1763260129123,0.1667,3176.5,3176.3,3.2078]
[1763260129435,0.16959123,3176.5,3176.3,3.2078]
[1763260131637,0.00289123,3176.5,3176.3,3.2078]
[1763260132022,0.16959123,3176.5,3176.3,3.2078]
[1763260132939,0.2738,3176.4,3176.3,3.2078]
[1763260134733,0.4405,3176.0,3175.9,3.21252418]
[1763260134934,0.4405,3176.0,3175.9,0.00472418]
[1763260135728,0.2738,3175.6,3175.5,3.2078]
[1763260136034,0.2738,3175.2,3175.1,3.2078]
[1763260136229,0.1667,3175.5,3175.1,3.2078]
[1763260136942,0.00289123,3176.5,3175.5,3.2078]
[1763260137130,0.10361818,3177.0,3176.1,3.2078]
[1763260137332,0.1667,3178.0,3176.9,3.2078]
[1763260137542,0.0346,3178.7,3177.9,3.2078]
[1763260137739,0.0346,3178.7,3178.3,3.2078]
[1763260138131,0.17032077,3178.5,3178.3,3.21188256]
[1763260139530,1.70201323,3181.1,3179.2,3.2078]
[1763260139733,0.4544,3180.7,3180.6,3.2078]
[1763260140235,6.4544,3180.7,3180.6,3.2078]
[1763260140439,0.00253975,3180.7,3180.6,3.21107252]
[1763260141141,0.36826871,3183.6,3181.9,3.2078]
[1763260141345,0.36826871,3183.6,3183.2,3.2078]
[1763260141346,6.0,3183.5,3183.2,3.2078]
[1763260141841,0.2665,3182.9,3182.7,3.2078]
[1763260142040,0.26978459,3182.9,3182.7,3.21040328]
[1763260142439,0.00328459,3182.9,3182.7,3.21040328]
[1763260143340,0.2665,3186.4,3184.4,3.2078]
[1763260143537,0.2665,3186.4,3182.8,9.318]
[1763260143538,3.2078,3186.3,3185.6,3.2078]
[1763260143738,0.2665,3184.8,3183.9,3.2078]
[1763260143942,0.2665,3184.0,3183.3,3.2078]
[1763260144330,2.7922,3183.9,3183.8,3.2078]
[1763260144537,0.26989333,3184.0,3183.8,3.2078]
[1763260144841,0.00339333,3184.0,3183.8,9.2078]
[1763260145142,2.74491554,3183.9,3183.8,3.2078]
[1763260145347,0.2665,3183.2,3182.9,3.2078]
[1763260145841,0.50926,3183.1,3182.9,3.2078]
[1763260146344,0.50928,3183.1,3182.7,0.0047152]
[1763260146530,0.50928,3183.1,3182.1,3.2078]
[1763260146734,0.50933,3182.7,3182.1,3.2078]
[1763260146940,0.50941,3182.3,3182.1,3.2078]
[1763260147149,0.2665,3182.4,3180.3,4.626]
[1763260147150,0.77588,3182.4,3181.7,3.2078]
[1763260147333,0.2665,3182.4,3181.7,3.2078]
[1763260147538,0.0047152,3182.4,3182.1,3.2078]
[1763260147745,0.2712152,3182.4,3182.1,3.2078]
[1763260148041,0.2665,3183.2,3182.1,3.2078]
[1763260148343,0.50922,3183.4,3182.6,3.2078]
[1763260148544,0.50928,3183.1,3182.6,3.2078]
[1763260148748,0.2665,3183.2,3182.6,3.2078]
[1763260149043,0.27118525,3183.2,3182.6,3.2078]
[1763260149234,0.78044525,3183.2,3182.6,3.2078]
[1763260149431,0.27118525,3183.2,3182.6,3.2078]
[1763260149647,0.00468525,3183.2,3183.1,3.2078]
[1763260150336,0.77901333,3184.0,3183.1,3.2078]
[1763260150540,0.50918,3183.7,3183.1,3.2078]
[1763260151038,0.50921,3183.5,3183.1,3.2078]
[1763260151237,0.50921,3183.5,3182.7,3.2078]
[1763260151238,0.2665,3183.2,3182.7,3.2078]
[1763260151434,0.2665,3183.2,3181.7,0.0086986]
[1763260151435,0.2665,3182.4,3182.3,3.2078]
[1763260152337,0.50947,3181.9,3181.7,3.2164986]
[1763260152537,0.2665,3181.6,3180.8,3.2078]
[1763260152846,0.50958,3181.2,3180.8,3.2078]
[1763260153143,0.50947,3181.9,3180.8,3.2078]
[1763260153336,0.4296,3181.6,3181.4,3.2078]
[1763260153533,0.50952,3181.5,3181.4,0.00330268]
[1763260154443,0.43316693,3181.6,3181.4,0.00330268]
[1763260154641,0.50952,3181.5,3181.4,0.00330268]
[1763260154842,0.43316693,3181.6,3181.4,0.00330268]
[1763260155341,4.15047693,3181.6,3181.4,0.00330268]
[1763260156646,3.64096693,3181.6,3181.4,0.00330268]
[1763260156852,4.15047693,3181.6,3181.4,0.00330268]
[1763260158253,0.43316693,3181.6,3181.4,0.00330268]
[1763260159137,0.94267693,3181.6,3181.4,0.00330268]
[1763260159749,3.2078,3181.5,3181.4,0.00330268]
[1763260160138,0.50966,3180.6,3180.5,3.2078]
[1763260160335,0.4296,3179.4,3178.9,3.2078]
[1763260160844,0.5098,3179.8,3179.3,3.2078]
[1763260161037,3.6374,3180.1,3179.3,3.2078]
[1763260161038,0.50979,3179.9,3179.3,3.21070706]
[1763260161246,0.50981,3179.7,3179.3,3.21542226]
[1763260161741,0.0047152,3179.9,3179.3,3.21542226]
[1763260161944,0.5144952,3179.9,3179.3,3.21542226]
[1763260162146,0.0047152,3179.9,3179.8,3.2078]
[1763260163645,3.2078,3180.7,3179.8,3.2078]
[1763260164048,3.2078,3180.7,3180.2,3.2078]
[1763260164646,3.71745,3180.7,3180.2,3.2078]
[1763260164845,0.50966,3180.6,3180.2,3.2078]
[1763260165448,0.50968,3180.5,3180.2,3.2078]
[1763260165645,0.0047152,3180.8,3180.2,3.2078]
[1763260165846,0.4343152,3180.8,3180.2,3.2078]
[1763260166241,0.4343152,3180.8,3179.3,0.00762226]
[1763260166242,0.4296,3180.1,3179.7,3.2078]
[1763260166444,0.93935,3180.1,3179.7,3.2078]
[1763260166662,0.50978,3179.9,3179.7,3.2078]
[1763260166852,3.6374,3180.1,3179.3,3.21542226]
[1763260167041,0.93946,3179.4,3179.3,3.21542226]
[1763260167543,0.93946,3179.4,3179.3,0.00762226]
[1763260168266,0.93946,3179.4,3178.7,3.2392599]
[1763260168267,0.50995,3178.8,3178.7,3.2392599]
[1763260168561,6.4296,3179.4,3177.3,2.2354563]
[1763260168562,0.4469,3178.7,3178.1,3.2078]
[1763260168747,0.51004,3178.3,3178.1,3.2078]
[1763260169558,0.51325161,3178.3,3178.1,3.21029082]
[1763260170355,0.00321161,3178.3,3178.1,3.21029082]
[1763260171052,0.51324161,3178.3,3178.1,3.21029082]
[1763260171256,0.51324161,3178.3,3178.1,0.00249082]
[1763260172660,0.51005,3178.2,3178.1,0.00249082]
[1763260173748,0.95698,3178.0,3177.9,0.0047152]
[1763260174158,0.95698,3178.0,3177.9,1.52e-05]
[1763260174551,1.09746575,3180.3,3178.0,6.0]
[1763260174756,1.09746575,3180.9,3179.9,3.2078]
[1763260175048,0.4469,3180.8,3180.4,3.2078]
[1763260175252,0.50965,3180.7,3180.4,3.2078]
[1763260175452,0.50967,3180.6,3180.4,3.2078]
[1763260175658,0.51237203,3180.6,3180.4,3.21017272]
[1763260175862,6.51237203,3180.6,3180.4,3.21017272]
[1763260176058,0.50971,3180.3,3180.2,0.0047152]
[1763260176655,0.00270203,3180.6,3180.2,0.0047152]
[1763260176965,0.5097,3180.4,3180.2,0.0047152]
[1763260177160,0.5097,3180.4,3180.2,0.00831543]
[1763260177861,0.4469,3180.0,3179.9,3.2078]
[1763260178559,0.50982,3179.6,3179.4,3.2078]
[1763260178872,0.50982,3179.6,3179.4,2.831e-05]
[1763260179073,0.50982,3179.6,3179.2,0.0047152]
[1763260179074,0.50987,3179.3,3179.2,0.0047152]
[1763260179854,0.50992,3179.0,3178.9,3.2078]
[1763260180265,0.50992,3179.0,3178.9,3.21122773]
[1763260180566,3.71772,3179.0,3178.9,2.773e-05]
[1763260180867,0.50999,3178.6,3178.5,3.2078]
[1763260181067,0.50997,3178.7,3178.5,3.2078]
[1763260181670,0.50997,3178.7,3178.5,3.2107901]
[1763260182466,0.95687,3178.7,3178.5,3.2107901]
[1763260182768,0.95607,3178.7,3178.5,3.2107901]
[1763260183469,0.50999,3178.6,3178.5,0.0029901]
[1763260183971,0.51003,3178.3,3178.2,0.0047152]
[1763260184866,3.2078,3178.6,3178.2,0.0047152]
[1763260185073,0.51003,3178.3,3178.2,0.00864813]
[1763260185665,3.21136475,3178.6,3178.0,3.2078]
[1763260185866,0.51007,3178.1,3178.0,3.2078]
[1763260186065,0.51014,3177.7,3177.6,3.2078]
[1763260186271,0.5101,3177.9,3177.6,3.2078]
[1763260186471,0.51013,3177.7,3177.6,3.2078]
[1763260186667,0.51013,3177.7,3177.6,3.21052359]
[1763260186867,0.4469,3178.0,3177.6,3.21052359]
[1763260187469,0.51013,3177.7,3177.6,3.21052359]
[1763260187870,0.4469,3178.0,3177.6,3.21052359]
[1763260188070,0.5101,3177.9,3177.6,3.21052359]
[1763260188471,0.51011,3177.8,3177.6,3.21052359]
[1763260188672,0.51013,3177.7,3177.6,3.21052359]
[1763260189674,1.25073,3177.7,3177.6,3.21052359]
[1763260189870,3.2078,3178.2,3177.6,3.21052359]
[1763260190269,0.4469,3178.0,3177.6,3.21052359]
[1763260190874,0.00356475,3178.6,3177.6,3.21052359]
[1763260191079,0.00356475,3178.6,3178.3,3.2078]
[1763260191269,0.51355475,3178.6,3178.3,3.2078]
[1763260191466,0.00356475,3178.6,3178.3,3.2078]
[1763260192774,0.51001,3178.5,3178.3,3.2078]
[1763260192974,0.51002,3178.4,3178.3,3.2078]
[1763260193277,1.25062,3178.4,3178.3,3.2078]
[1763260193470,0.95699,3178.0,3177.7,3.2078]
[1763260193671,0.5101,3177.9,3177.7,3.2078]
[1763260194174,0.4469,3178.0,3177.7,3.2078]
[1763260194378,0.5101,3177.9,3177.7,3.2078]
[1763260194571,0.4469,3178.0,3177.7,3.2078]
[1763260194770,0.51006,3178.2,3177.7,3.2078]
[1763260195572,0.00356475,3178.6,3178.1,3.2078]
[1763260195777,0.00356475,3178.6,3177.7,0.82807025]
[1763260195778,0.00356475,3178.6,3178.5,3.2078]
[1763260196376,0.00276475,3178.6,3178.5,3.2078]
[1763260196877,0.51275475,3178.6,3178.5,3.2078]
[1763260197077,0.00276475,3178.6,3178.5,3.2078]
[1763260197476,0.51275475,3178.6,3178.5,3.2078]
[1763260199379,0.00276475,3178.6,3178.5,3.2078]
[1763260199783,0.51275475,3178.6,3178.5,3.2078]
[1763260200181,0.00276475,3178.6,3178.5,3.2078]
[1763260200880,3.2078,3179.4,3178.5,4.03587025]
[1763260201071,2.951,3180.0,3179.3,3.2078]
[1763260201275,2.951,3180.5,3179.9,3.2078]
[1763260201575,0.50984,3179.5,3179.4,3.2078]
[1763260201883,0.50984,3179.5,3179.1,0.0047152]
[1763260201884,0.50989,3179.2,3179.1,0.0047152]
[1763260202087,1.29909,3179.2,3179.1,0.00806821]
[1763260202384,7.45789,3179.2,3179.1,0.00806821]
[1763260202981,3.7402,3179.2,3179.1,0.00806821]
[1763260203183,2.951,3179.2,3179.1,0.81076821]
[1763260203887,0.0047152,3179.8,3179.1,0.00806821]
[1763260204184,0.0047152,3179.8,3179.5,3.2078]
[1763260204773,0.00742298,3179.8,3179.5,3.2078]
[1763260205783,0.50974,3180.2,3179.6,0.8251915]
[1763260206084,3.2078,3180.3,3179.6,0.8251915]
[1763260206286,3.2078,3180.3,3179.5,4.0329915]
[1763260206792,0.5144552,3180.2,3179.5,4.0329915]
[1763260206995,0.0047152,3180.2,3179.5,4.0329915]
[1763260207187,0.0047152,3180.2,3179.9,3.2078]
[1763260209278,0.4572,3180.0,3179.5,4.0329915]
[1763260209492,0.50978,3179.9,3179.5,3.2078]
[1763260210185,0.50982,3179.6,3179.5,3.2078]
[1763260210383,0.50986,3179.4,3179.1,3.21586821]
[1763260210582,0.96706,3179.4,3179.1,3.21586821]
[1763260210787,0.50989,3179.2,3179.1,3.21586821]
[1763260210991,4.50689,3179.2,3179.1,0.00806821]
[1763260211187,0.50999,3178.6,3178.3,3.2078]
[1763260211496,0.51,3178.6,3178.3,3.2078]
[1763260211693,0.50999,3178.6,3178.3,3.2078]
[1763260211895,0.51,3178.5,3178.3,3.2078]
[1763260212092,0.51002,3178.4,3178.3,3.21001873]
[1763260212297,3.665,3178.8,3178.3,3.21001873]
[1763260212593,3.2078,3179.3,3178.7,3.2078]
[1763260212781,0.5099,3179.2,3178.7,3.2078]
[1763260212980,3.2078,3179.3,3178.7,3.2078]
[1763260213397,0.50992,3179.0,3178.7,3.2078]
[1763260213901,3.2078,3179.3,3178.7,3.2078]
[1763260214093,0.50991,3179.1,3178.7,3.2078]
[1763260214395,0.50989,3179.2,3178.7,3.2078]
[1763260214703,0.4572,3179.4,3178.7,3.2078]
[1763260214998,1.03676,3179.4,3178.7,3.2078]
[1763260215203,0.5269,3179.4,3178.7,3.2078]
[1763260215400,0.5269,3178.8,3178.7,3.2078]
[1763260215586,0.5269,3178.8,3178.3,3.21001873]
[1763260215587,1.03685,3178.8,3178.3,3.21001873]
[1763260215791,3.2078,3179.3,3178.7,3.2078]
[1763260215989,0.5269,3178.8,3178.7,3.2078]
[1763260216190,3.2078,3179.3,3178.7,3.2078]
[1763260216191,0.50987,3179.3,3178.7,3.2078]
[1763260216396,0.5269,3179.4,3178.7,3.2078]
[1763260216597,0.50992,3179.0,3178.7,3.2078]
[1763260216890,1.85285,3178.8,3178.7,3.2078]
[1763260217600,0.51,3178.5,3178.3,3.21001873]
[1763260217896,4.53382,3178.4,3178.3,0.00221873]
[1763260218498,4.53382,3178.4,3178.3,1.873e-05]
[1763260221506,1.3429,3177.6,3177.5,3.2078]
[1763260221804,1.3429,3177.6,3177.0,3.2078]
[1763260221805,0.5269,3177.6,3177.0,3.2078]
[1763260222106,0.51019,3177.4,3177.0,3.2078]
[1763260222306,0.5102,3177.3,3177.0,3.2078]
[1763260222506,0.51372026,3177.3,3177.0,3.21042335]
[1763260222713,0.00352026,3177.3,3177.0,3.21042335]
[1763260223310,3.2078,3177.9,3177.0,3.21042335]
[1763260223509,3.207,3177.9,3177.4,3.2078]
[1763260224000,3.2078,3178.3,3177.8,3.2078]
[1763260224308,3.21124488,3178.3,3177.8,3.2078]
[1763260224711,0.5269,3178.2,3177.4,3.2078]
[1763260225309,0.51007,3178.1,3177.4,3.2078]
[1763260225900,1.03706,3177.6,3177.4,3.2078]
[1763260226609,0.5269,3177.6,3177.4,3.2078]
[1763260226911,0.5269,3178.2,3177.4,3.2078]
[1763260227110,0.5101,3177.9,3177.4,3.2078]
[1763260227704,0.51011,3177.9,3177.4,3.2078]
[1763260227907,3.21124488,3178.3,3177.4,3.2078]
[1763260228203,0.5269,3178.2,3177.4,3.2078]
[1763260228409,0.51011,3177.9,3177.4,3.2078]
[1763260228711,0.51007,3178.1,3177.4,3.2078]
[1763260229211,0.5101,3177.9,3177.4,3.2078]
[1763260229709,1.03695,3178.2,3177.4,3.2078]
[1763260230312,0.51007,3178.1,3177.4,3.2078]
[1763260230912,0.51009,3178.0,3177.4,3.2078]
[1763260231107,1.00016,3177.6,3177.0,3.21042335]
[1763260231311,0.49,3177.6,3177.0,3.21042335]
[1763260231515,0.51016,3177.5,3177.0,3.21042335]
[1763260231712,0.51018,3177.4,3177.0,3.21042335]
[1763260231909,0.7982,3177.1,3177.0,0.00262335]
[1763260232508,1.30843,3177.1,3177.0,0.00262335]
[1763260232906,4.51623,3177.1,3177.0,0.00262335]
[1763260233809,0.51016,3177.5,3177.0,0.00262335]
[1763260234014,0.7982,3177.1,3177.0,0.00262335]
[1763260234208,1.30843,3177.1,3177.0,0.00262335]
[1763260234521,3.71801,3177.2,3177.0,0.00262335]
[1763260234718,1.30843,3177.1,3177.0,0.00262335]
[1763260235212,1.30843,3177.1,3177.0,2.335e-05]
[1763260237005,1.30763,3177.1,3177.0,2.335e-05]
[1763260238717,3.71801,3177.2,3177.0,2.335e-05]
[1763260239104,3.2078,3177.2,3177.0,2.335e-05]
[1763260239303,3.71803,3177.2,3177.0,2.335e-05]
[1763260239506,1.30843,3177.1,3177.0,2.335e-05]
[1763260243216,3.2078,3177.2,3177.0,2.335e-05]
[1763260243410,3.6978,3177.6,3177.0,2.335e-05]
[1763260243711,3.71789,3178.0,3177.2,3.2078]
[1763260243914,0.5101,3177.9,3177.2,3.2078]
[1763260244317,3.2078,3178.0,3177.2,3.2078]
[1763260245019,3.71789,3178.0,3177.2,3.2078]
[1763260245225,3.2078,3178.0,3177.2,3.2078]
[1763260245417,0.5101,3177.9,3177.2,3.2078]
[1763260245919,3.2078,3178.0,3177.2,3.2078]
[1763260246216,3.2078,3178.0,3177.2,4.0329915]
[1763260246418,0.51016,3177.5,3177.2,3.2078]
[1763260248722,0.51019,3177.4,3177.2,3.2078]
[1763260249219,4.20796,3177.6,3177.2,3.2078]
[1763260249420,0.51018,3177.4,3177.2,3.2078]
[1763260249719,1.30839,3177.3,3177.2,3.2078]
[1763260250715,0.7982,3177.3,3177.2,3.2078]
[1763260250918,0.51019,3177.4,3177.2,3.2078]
[1763260251514,1.30839,3177.3,3177.2,3.2078]
[1763260252824,0.51016,3177.5,3177.2,3.2078]
[1763260253222,0.51019,3177.4,3177.2,3.2078]
[1763260254122,0.51019,3177.4,3177.0,2.335e-05]
[1763260255026,4.20796,3177.6,3177.0,2.335e-05]
[1763260255222,0.51018,3177.5,3177.0,2.335e-05]
[1763260255423,0.5102,3177.3,3177.0,2.335e-05]
[1763260256224,0.51023,3177.1,3177.0,2.335e-05]
[1763260256421,3.6978,3177.6,3177.0,2.335e-05]
[1763260256626,0.51022,3177.2,3177.0,2.335e-05]
[1763260256925,0.51019,3177.4,3177.0,2.335e-05]
[1763260257817,0.51021,3177.3,3177.0,2.335e-05]
[1763260260831,0.51021,3177.4,3177.0,2.335e-05]
[1763260261031,0.51022,3177.2,3177.0,2.335e-05]
[1763260261522,3.2078,3178.0,3177.1,7.67007156]
[1763260261729,1.51556575,3179.0,3177.9,3.2078]
[1763260261929,3.2078,3179.3,3178.7,3.2078]
[1763260262424,0.4181,3178.8,3178.5,0.82829432]
[1763260262725,0.50997,3178.7,3178.3,0.0047152]
[1763260262925,0.42174181,3178.8,3178.3,3.2125152]
[1763260263128,1.25432,3178.4,3178.3,0.0047152]
[1763260263524,0.51001,3178.5,3178.3,0.0047152]
[1763260263830,1.25432,3178.4,3178.3,0.0047152]
[1763260265429,1.25432,3178.4,3178.3,1.52e-05]
[1763260265624,0.51016,3177.5,3177.3,4.03609432]
[1763260265820,0.4181,3178.2,3177.3,3.2078]
[1763260266020,0.4181,3178.2,3177.7,3.2078]
[1763260266225,3.7178,3178.5,3177.7,3.2078]
[1763260266534,3.2078,3178.5,3178.1,3.2078]
[1763260266728,3.2125152,3179.0,3178.1,3.2078]
[1763260267036,3.2125152,3179.0,3177.8,0.83300952]
[1763260267037,0.00364181,3178.8,3178.5,3.2078]
[1763260267223,0.0047152,3179.0,3178.6,0.82829432]
[1763260267420,13.55995261,3180.9,3178.6,0.82829432]
[1763260267421,3.2078,3180.3,3178.9,3.2078]
[1763260267626,0.4181,3180.0,3179.8,3.2078]
[1763260267831,0.4181,3180.0,3179.4,4.03020824]
[1763260268232,0.42099048,3180.0,3179.4,4.03307739]
[1763260268433,0.42570568,3180.0,3179.4,3.21538435]
[1763260268933,3.71743,3180.9,3179.8,3.2078]
[1763260269128,3.71743,3180.9,3180.2,3.2078]
[1763260269436,0.50964,3180.8,3180.2,3.2078]
[1763260269830,3.2078,3180.9,3180.2,3.2078]
[1763260270130,0.4217,3180.6,3180.2,3.2078]
[1763260271234,0.7443,3180.3,3180.2,3.2078]
[1763260271621,0.93138,3180.6,3180.2,3.2078]
[1763260271825,0.4217,3180.6,3180.2,3.2078]
[1763260272535,0.7443,3180.3,3180.2,3.2078]
[1763260273931,1.25401,3180.3,3180.2,3.2078]
[1763260274141,0.4092,3180.0,3179.4,3.21538435]
[1763260274437,1.22694,3179.5,3179.4,3.21538435]
[1763260274635,0.50982,3179.7,3179.4,3.21538435]
[1763260275327,3.617,3180.0,3179.4,3.21538435]
[1763260275328,1.22694,3179.5,3179.4,3.21538435]
[1763260275526,3.617,3180.0,3179.0,3.2078]
[1763260275527,1.22701,3179.1,3179.0,3.2078]
[1763260275928,3.617,3179.4,3179.0,3.2078]
[1763260276122,0.50989,3179.2,3179.0,3.2078]
[1763260276329,1.22701,3179.1,3179.0,3.2078]
[1763260276529,0.7171,3179.1,3179.0,3.2078]
[1763260276730,0.50991,3179.1,3179.0,3.2078]
[1763260276930,3.6217152,3179.4,3179.0,3.21111891]
[1763260277331,1.22701,3179.1,3179.0,3.21111891]
[1763260277629,0.50989,3179.2,3179.0,3.21111891]
[1763260277828,3.6217152,3179.4,3179.0,3.21111891]
[1763260278235,0.50989,3179.2,3179.0,3.21111891]
[1763260279134,0.50988,3179.3,3179.0,3.21111891]
[1763260279335,0.4139152,3179.4,3179.0,3.21111891]
[1763260279535,0.50989,3179.2,3179.0,3.21111891]
[1763260280732,0.50987,3179.3,3179.0,3.21111891]
[1763260281133,0.5099,3179.2,3179.0,3.21111891]
[1763260282543,0.9237752,3179.4,3179.0,3.21111891]
[1763260282843,0.50989,3179.2,3179.0,3.21111891]
[1763260283941,0.9237852,3179.4,3179.0,3.21111891]
[1763260284447,0.0047152,3179.4,3179.0,3.21111891]
[1763260284746,0.4092,3180.0,3179.0,9.21111891]
[1763260284940,0.4092,3180.0,3179.9,3.2078]
[1763260285141,0.91896,3180.0,3179.9,3.2078]
[1763260287146,1.63606,3180.0,3179.9,3.2078]
[1763260287348,0.91906,3179.4,3179.1,3.2078]
[1763260287543,0.4092,3180.0,3179.1,3.2078]
[1763260287849,0.4092,3180.0,3179.9,3.2078]
[1763260288349,0.91896,3180.0,3179.9,3.2078]
[1763260288546,0.4092,3180.0,3179.9,3.2078]
[1763260288746,0.91896,3180.0,3179.9,3.2078]
[1763260288947,0.4092,3180.0,3179.9,3.2078]
[1763260289847,0.0047152,3180.3,3179.9,3.2078]
[1763260291252,0.0039152,3180.3,3179.9,3.2078]
[1763260291641,0.5136252,3180.3,3179.9,3.2078]
[1763260292046,0.3802,3180.0,3179.9,3.2078]
[1763260292248,0.88996,3180.0,3179.9,3.2078]
[1763260292450,1.52986,3180.0,3179.9,3.2078]
[1763260292649,0.50991,3179.1,3179.0,3.21111891]
[1763260292850,0.3802,3179.5,3179.0,3.21111891]
[1763260293152,0.50989,3179.2,3179.0,3.21111891]
[1763260293453,1.14981,3179.1,3179.0,0.00331891]
[1763260294050,0.3802,3178.0,3177.9,0.82240824]
[1763260294248,0.3802,3178.0,3177.8,3.2078]
[1763260294449,0.89029,3178.0,3177.8,3.2078]
[1763260294752,0.3802,3178.5,3177.8,3.2078]
[1763260294944,0.38845588,3178.5,3177.8,3.21505414]
[1763260295141,0.51007,3178.1,3177.8,3.21505414]
[1763260295351,0.89846588,3178.5,3177.8,3.21505414]
[1763260295557,0.38845588,3178.5,3177.8,3.21505414]
[1763260295757,0.51009,3178.0,3177.8,3.21505414]
[1763260296053,0.6399,3177.9,3177.8,3.21505414]
[1763260296447,0.38845588,3178.5,3177.8,3.21505414]
[1763260296847,0.51006,3178.2,3177.8,3.21505414]
[1763260297252,0.51009,3178.0,3177.8,3.21505414]
[1763260297650,0.51006,3178.2,3177.8,3.21505414]
[1763260297845,0.38845588,3178.5,3177.8,3.21505414]
[1763260298248,0.51004,3178.3,3177.8,3.21505414]
[1763260298948,0.38845588,3178.5,3177.8,3.21505414]
[1763260299146,0.51005,3178.2,3177.8,3.21505414]
[1763260300554,0.51007,3178.1,3177.8,3.21505414]
[1763260300755,0.51005,3178.2,3177.8,3.21505414]
[1763260300958,0.51003,3178.3,3177.8,3.21505414]
[1763260301256,0.38845588,3178.5,3177.8,3.21505414]
[1763260301447,0.89847588,3178.5,3177.8,3.21505414]
[1763260301643,0.89847588,3178.5,3178.2,3.2078]
[1763260301851,0.38845588,3178.5,3178.2,3.2078]
[1763260302259,0.51003,3178.3,3178.2,3.2078]
[1763260302654,0.89845588,3178.5,3178.2,3.2078]
[1763260303759,0.38845588,3178.5,3178.2,3.2078]
[1763260304056,0.89845588,3178.5,3178.2,3.2078]
[1763260304449,0.51002,3178.4,3178.2,3.2078]
[1763260305558,0.51002,3178.4,3178.1,3.2078]
[1763260305759,1.14995,3178.2,3178.1,3.2078]
[1763260307059,0.6399,3178.2,3178.1,3.2078]
[1763260307357,0.51005,3178.2,3178.1,3.2078]
[1763260307958,0.38845588,3178.5,3178.1,3.2078]
[1763260308149,0.00825588,3178.5,3178.1,3.2078]
[1763260308352,0.38845588,3178.5,3178.1,4.03020824]
[1763260309561,0.51002,3178.4,3178.1,3.2078]